fUST/lending_fUST_20250418
["ID","MTS","AMOUNT","RATE_DAILY","PERIOD"]
[358314143,1744925438066,-404.98450604,0.00021057,2]
[358314268,1744925440266,-87.26621857,0.00021057,2]
[358315166,1744925887030,10000.0,0.00025,120]
[358315167,1744925895037,10000.0,0.00025,120]
[358315168,1744925902294,10000.0,0.00025,120]
[358315169,1744925910477,353.0,0.00025,120]
[358315217,1744926632008,-300.0,0.00019949,2]
[358315218,1744926632019,-300.0,0.00019949,2]
[358315219,1744926632029,-9198.089831,0.0001995,2]
[358315220,1744926632041,-269.62769816,0.0001995,2]
[358315221,1744926632122,-15241.36968212,0.0001995,2]
[358315262,1744926638184,-190.91278872,0.0001995,2]
[358315264,1744926638193,-737.18521941,0.00020735,2]
[358315276,1744926638310,-1577.36878059,0.00020735,2]
[358315278,1744926638322,-402.0,0.00020735,2]
[358315279,1744926638332,-1193.54550315,0.0002085,2]
[358315280,1744926638342,-152.0,0.0002094,2]
[358315281,1744926638352,-160.48,0.00020944,2]
[358315282,1744926638362,-151.0,0.00020946,2]
[358315283,1744926638372,-207.4,0.00020946,2]
[358315284,1744926638384,-472.85502363,0.00020949,2]
[358315285,1744926638396,-500.0,0.00020949,2]
[358315286,1744926638407,-608.86955458,0.00020949,2]
[358315287,1744926638420,-204.78929178,0.00020949,2]
[358315288,1744926638438,-295.21070822,0.00020949,2]
[358315289,1744926638449,-608.86955458,0.00020949,2]
[358315290,1744926638462,-608.86955458,0.00020949,2]
[358315291,1744926638475,-500.0,0.00020949,2]
[358315292,1744926638486,-608.86955458,0.00020949,2]
[358315293,1744926638495,-500.0,0.00020949,2]
[358315294,1744926638505,-608.86955458,0.00020949,2]
[358315295,1744926638514,-608.86955458,0.00020949,2]
[358315296,1744926638523,-500.0,0.00020949,2]
[358315297,1744926638532,-608.86955458,0.00020949,2]
[358315298,1744926638541,-608.86955458,0.00020949,2]
[358315299,1744926638551,-500.0,0.00020949,2]
[358315300,1744926638560,-608.86955458,0.00020949,2]
[358315301,1744926638569,-608.86955458,0.00020949,2]
[358315302,1744926638578,-608.86955458,0.00020949,2]
[358315303,1744926638587,-608.86955458,0.00020949,2]
[358315304,1744926638596,-608.86955458,0.00020949,2]
[358315305,1744926638605,-608.86955458,0.00020949,2]
[358315306,1744926638614,-540.98831325,0.00020949,2]
[358315307,1744926638623,-608.86955458,0.00020949,2]
[358315308,1744926638632,-608.86955458,0.00020949,2]
[358315309,1744926638641,-475.36103995,0.00020949,2]
[358315310,1744926638653,-133.50851463,0.00020949,2]
[358315311,1744926638662,-608.86955458,0.00020949,2]
[358315312,1744926638672,-524.42100418,0.00020949,2]
[358315361,1744926640528,-84.4485504,0.00020949,2]
[358315363,1744926640538,-608.86955458,0.00020949,2]
[358315365,1744926640548,-0.14189502,0.00020949,2]
[358315367,1744926640560,-608.72765956,0.00020949,2]
[358315369,1744926640569,-608.86955458,0.00020949,2]
[358315371,1744926640579,-608.86955458,0.00020949,2]
[358315373,1744926640589,-608.86955458,0.00020949,2]
[358315375,1744926640599,-608.86955458,0.00020949,2]
[358315377,1744926640608,-608.86955458,0.00020949,2]
[358315379,1744926640618,-608.86955458,0.00020949,2]
[358315381,1744926640628,-608.86955458,0.00020949,2]
[358315383,1744926640637,-608.86955458,0.00020949,2]
[358315385,1744926640647,-608.86955458,0.00020949,2]
[358315387,1744926640656,-608.86955458,0.00020949,2]
[358315389,1744926640666,-608.86955458,0.00020949,2]
[358315391,1744926640675,-608.86955458,0.00020949,2]
[358315393,1744926640684,-608.86955458,0.00020949,2]
[358315394,1744926640694,-608.86955458,0.00020949,2]
[358315395,1744926640703,-608.86955458,0.00020949,2]
[358315396,1744926640712,-608.86955458,0.00020949,2]
[358315397,1744926640722,-608.86955458,0.00020949,2]
[358315398,1744926640731,-608.86955458,0.00020949,2]
[358315399,1744926640741,-608.86955458,0.00020949,2]
[358315400,1744926640751,-608.86955458,0.00020949,2]
[358315401,1744926640760,-608.86955458,0.00020949,2]
[358315402,1744926640770,-608.86955458,0.00020949,2]
[358315403,1744926640779,-608.86955458,0.00020949,2]
[358315404,1744926640788,-608.86955458,0.00020949,2]
[358315405,1744926640797,-608.86955458,0.00020949,2]
[358315406,1744926640806,-608.86955458,0.00020949,2]
[358315407,1744926640815,-500.0,0.00020949,2]
[358315408,1744926640825,-25.86006679,0.00020949,2]
[358315620,1744926644275,-511.62726809,0.00020949,2]
[358315621,1744926644342,-53.30668881,0.00020949,2]
[358315622,1744926644352,-4447.34036712,0.0002095,2]
[358315623,1744926644364,-539.43999999,0.0002095,2]
[358315630,1744926646174,-26118.63283342,0.0002095,2]
[358315632,1744926646186,-543.0,0.0002095,2]
[358315633,1744926866107,-176.05294263,0.000189,2]
[358315640,1744927167517,-151.0,0.000189,2]
[358315641,1744927470628,-305.67155632,0.000189,2]
[358315642,1744927480342,-383.71780958,0.000189,2]
[358315672,1744927770698,-407.39740288,0.000189,2]
[358315673,1744927776824,-289.21674193,0.000189,2]
[358315680,1744927832159,-673.43390847,0.000189,2]
[358315681,1744927832169,-300.0,0.00019855,2]
[358315682,1744927832179,-300.0,0.00019855,2]
[358315683,1744927832189,-248.02798,0.00019855,2]
[358315684,1744927832199,-968.74795904,0.00019856,2]
[358315685,1744927832211,-7862.56359496,0.00019856,2]
[358315686,1744927832224,-732.9768744,0.00019856,2]
[358315687,1744927832236,-317.83,0.00019856,2]
[358315689,1744927832253,-273.44970584,0.00019856,2]
[358315809,1744927843268,-548.31,0.00019856,2]
[358315848,1744927846616,-1326.17596078,0.00019856,2]
[358315849,1744927846627,-1992.25656816,0.00019856,2]
[358315850,1744927950060,-167.83662476,0.000188,2]
[358315851,1744928072397,-162.6129279,0.000188,2]
[358315859,1744928373621,-166.27937244,0.000188,2]
[358315889,1744928871939,368.51237548,0.00018,2]
[358315890,1744928872733,-253.00695613,0.000188,2]
[358315891,1744928875799,6649.66853746,0.00016,2]
[358315892,1744928897687,1489.56442766,0.000125,2]
[358315893,1744928917254,596.19291404,0.00017,2]
[358315894,1744928917292,896.06174536,0.00017653,2]
[358315895,1744928917322,4103.93825464,0.00017653,2]
[358315896,1744928976271,-0.26411877,0.000188,2]
[358315897,1744928976293,-549.54794468,0.000189,2]
[358315898,1744929000959,-168.05306563,0.000188,2]
[358315987,1744929032522,-815.44841988,0.000189,2]
[358315989,1744929032532,-300.0,0.00019199,2]
[358315991,1744929032542,-300.0,0.00019199,2]
[358315994,1744929032552,-3560.94949555,0.000192,2]
[358315996,1744929032561,-2674.2991229,0.000192,3]
[358315998,1744929032572,-3698.53813216,0.000192,3]
[358316000,1744929032581,-24900.0,0.000192,2]
[358316001,1744929032590,-1630.94225885,0.00019592,2]
[358316003,1744929032600,-4559.5013088,0.00019692,2]
[358316005,1744929032609,-63.52212593,0.000198,2]
[358316094,1744929038652,-228.34116235,0.000198,2]
[358316096,1744929038664,-500.0,0.00019999,2]
[358316098,1744929038674,-500.0,0.00019999,2]
[358316101,1744929038686,-500.0,0.00019999,2]
[358316103,1744929038697,-500.0,0.00019999,2]
[358316105,1744929038708,-422.05598075,0.00019999,2]
[358316117,1744929038811,-77.94401925,0.00019999,2]
[358316119,1744929038822,-500.0,0.00019999,2]
[358316121,1744929038832,-500.0,0.00019999,2]
[358316123,1744929038843,-500.0,0.00019999,2]
[358316125,1744929038853,-500.0,0.00019999,2]
[358316127,1744929038864,-500.0,0.00019999,2]
[358316130,1744929038875,-500.0,0.00019999,2]
[358316132,1744929038886,-500.0,0.00019999,2]
[358316134,1744929038898,-500.0,0.00019999,2]
[358316136,1744929038909,-500.0,0.00019999,2]
[358316138,1744929038920,-500.0,0.00019999,2]
[358316141,1744929038932,-500.0,0.00019999,2]
[358316143,1744929038942,-500.0,0.00019999,2]
[358316144,1744929038954,-500.0,0.00019999,2]
[358316146,1744929038964,-500.0,0.00019999,2]
[358316148,1744929038975,-500.0,0.00019999,2]
[358316150,1744929038986,-500.0,0.00019999,2]
[358316152,1744929038997,-500.0,0.00019999,2]
[358316154,1744929039007,-500.0,0.00019999,2]
[358316156,1744929039018,-500.0,0.00019999,2]
[358316159,1744929039029,-500.0,0.00019999,2]
[358316161,1744929039042,-500.0,0.00019999,2]
[358316163,1744929039052,-500.0,0.00019999,2]
[358316165,1744929039063,-500.0,0.00019999,2]
[358316167,1744929039073,-500.0,0.00019999,2]
[358316169,1744929039085,-500.0,0.00019999,2]
[358316171,1744929039096,-500.0,0.00019999,2]
[358316173,1744929039106,-500.0,0.00019999,2]
[358316175,1744929039118,-500.0,0.00019999,2]
[358316177,1744929039129,-2453.04818242,0.0002,2]
[358316180,1744929039142,-4631.49464007,0.0002,2]
[358316182,1744929039153,-960.88474377,0.0002,2]
[358316315,1744929040856,-20764.87712913,0.0002,2]
[358316437,1744929046536,-607.72449415,0.0002,2]
[358316438,1744929046710,-3100.86822973,0.0002,2]
[358316442,1744929277417,-276.11231269,0.000189,2]
[358316444,1744929578897,-188.84397746,0.00018524,2]
[358316445,1744929578921,-45.25981249,0.000189,2]
[358316446,1744929881915,-173.89430538,0.000189,2]
[358316479,1744930068119,8111.0,0.00018,2]
[358316480,1744930132767,-400.90087805,0.00018755,2]
[358316544,1744930232745,-2529.26897575,0.00018755,2]
[358316548,1744930232755,-1570.04521292,0.000189,2]
[358316552,1744930232764,-300.0,0.00018967,2]
[358316555,1744930232774,-300.0,0.00018967,2]
[358316559,1744930232783,-1042.85367836,0.00018968,2]
[358316562,1744930232794,-1579.21663627,0.00018968,2]
[358316567,1744930232812,-22277.92968537,0.00018968,2]
[358316570,1744930232821,-253.544834,0.00019088,2]
[358316573,1744930232831,-1663.2445234,0.00019799,2]
[358316576,1744930232840,-623.20469549,0.00019895,2]
[358316579,1744930232849,-250.0,0.00019899,2]
[358316582,1744930232858,-250.0,0.000199,2]
[358316585,1744930232867,-151.0,0.00019984,2]
[358316588,1744930232876,-219.023224,0.00019995,2]
[358316591,1744930232886,-219.023224,0.00019995,2]
[358316594,1744930232895,-17915.5170348,0.00019995,2]
[358316597,1744930232906,-15220.10168226,0.00019995,2]
[358316600,1744930232915,-151.0,0.00019996,2]
[358316602,1744930232924,-151.0,0.00019996,2]
[358316604,1744930232933,-151.0,0.00019996,2]
[358316606,1744930232943,-309.639686,0.00019996,2]
[358316608,1744930232952,-309.639686,0.00019996,2]
[358316610,1744930232962,-309.639686,0.00019996,2]
[358316612,1744930232971,-309.639686,0.00019996,2]
[358316614,1744930232980,-623.20469545,0.00020037,2]
[358316616,1744930232990,-623.20469545,0.0002018,2]
[358316618,1744930232999,-623.20469545,0.00020322,2]
[358316620,1744930233008,-207.4,0.00020419,2]
[358316622,1744930233017,-623.20469545,0.00020464,2]
[358316624,1744930233026,-151.0,0.00020478,2]
[358316626,1744930233035,-565.2138451,0.00020548,2]
[358316628,1744930233045,-151.0,0.00020562,2]
[358316630,1744930233055,-151.0,0.00020562,2]
[358316632,1744930233064,-151.0,0.00020562,2]
[358316635,1744930233074,-219.023224,0.00020562,2]
[358316636,1744930233083,-219.023224,0.00020562,2]
[358316638,1744930233093,-219.023224,0.00020562,2]
[358316640,1744930233103,-219.023224,0.00020562,2]
[358316642,1744930233112,-500.0,0.00020562,2]
[358316645,1744930233122,-186.57460284,0.00020562,2]
[358316647,1744930233132,-500.0,0.00020562,2]
[358316649,1744930233141,-267.55810722,0.00020562,2]
[358316651,1744930233151,-500.0,0.00020562,2]
[358316652,1744930233161,-251.74617,0.00020563,2]
[358316655,1744930233170,-309.639686,0.00020563,2]
[358316656,1744930233180,-309.639686,0.00020563,2]
[358316659,1744930233190,-20536.03953969,0.00020563,2]
[358316893,1744930238823,-393.44314592,0.00019993,2]
[358316895,1744930238832,-500.0,0.00019993,2]
[358316897,1744930238841,-500.0,0.00019993,2]
[358316899,1744930238851,-500.0,0.00019993,2]
[358316901,1744930238861,-500.0,0.00019993,2]
[358316903,1744930238870,-500.0,0.00019993,2]
[358316905,1744930238879,-500.0,0.00019993,2]
[358316907,1744930238889,-500.0,0.00019993,2]
[358316910,1744930238898,-500.0,0.00019993,2]
[358316912,1744930238908,-500.0,0.00019993,2]
[358316913,1744930238917,-500.0,0.00019993,2]
[358316916,1744930238926,-500.0,0.00019993,2]
[358316918,1744930238937,-500.0,0.00019993,2]
[358316920,1744930238947,-500.0,0.00019993,2]
[358316922,1744930238957,-500.0,0.00019993,2]
[358316923,1744930238966,-500.0,0.00019993,2]
[358316926,1744930238977,-500.0,0.00019993,2]
[358316928,1744930238986,-500.0,0.00019993,2]
[358316930,1744930238995,-500.0,0.00019993,2]
[358316932,1744930239004,-500.0,0.00019993,2]
[358316934,1744930239014,-500.0,0.00019993,2]
[358316936,1744930239024,-500.0,0.00019993,2]
[358316938,1744930239033,-500.0,0.00019993,2]
[358316940,1744930239043,-500.0,0.00019993,2]
[358316942,1744930239052,-500.0,0.00019993,2]
[358316944,1744930239061,-500.0,0.00019993,2]
[358316946,1744930239071,-500.0,0.00019993,2]
[358316948,1744930239080,-500.0,0.00019993,2]
[358316950,1744930239090,-500.0,0.00019993,2]
[358316952,1744930239099,-500.0,0.00019993,2]
[358316954,1744930239108,-500.0,0.00019993,2]
[358316956,1744930239117,-500.0,0.00019993,2]
[358316958,1744930239127,-4431.32717883,0.00020563,2]
[358316960,1744930239137,-3186.41862753,0.00020563,3]
[358316962,1744930239146,-180402.45962945,0.00020564,2]
[358317317,1744930242587,-440.52116,0.00020564,2]
[358317551,1744930244887,-2000.0,0.00020564,2]
[358317589,1744930246884,-3000.0,0.00020564,2]
[358317591,1744930246896,-979.70367841,0.00020564,2]
[358317712,1744930271702,-167.83662476,0.00018655,2]
[358317713,1744930295347,-82.16337524,0.00018655,2]
[358317714,1744930295371,-138.63109463,0.000188,2]
[358317718,1744930904169,-175.10013838,0.00018117,2]
[358317719,1744930922528,-200.0,0.0001803,2]
[358317720,1744930949800,66000.0,0.00018,2]
[358317721,1744930984553,-267.84568267,0.00018029,2]
[358317722,1744931043474,-207.62584017,0.00018029,2]
[358317723,1744931103366,-92.37415983,0.00018029,2]
[358317724,1744931103396,-115.25168034,0.00018029,2]
[358317728,1744931163742,-284.98203637,0.00018029,2]
[358317729,1744931222986,-284.98203637,0.00018029,2]
[358317761,1744931253222,-200.0,0.0001803,10]
[358317762,1744931253247,-32.34335057,0.0001803,10]
[358317763,1744931258043,-15.01796363,0.00018029,2]
[358317764,1744931258069,-148.23521179,0.00018029,2]
[358317765,1744931315130,26133.6033501,0.0001786,2]
[358317766,1744931318891,-300.0,0.00018029,2]
[358317767,1744931318914,-27.6323572,0.0001803,10]
[358317867,1744931438058,-300.0,0.00018029,2]
[358317869,1744931438067,-300.0,0.00018029,2]
[358317871,1744931438076,-172.3676428,0.0001803,10]
[358317873,1744931438089,-200.0,0.0001803,10]
[358317875,1744931438098,-200.0,0.0001803,10]
[358317877,1744931438107,-200.0,0.0001803,10]
[358317879,1744931438117,-200.0,0.0001803,10]
[358317880,1744931438127,-200.0,0.0001803,10]
[358317883,1744931438136,-200.0,0.0001803,10]
[358317884,1744931438145,-200.0,0.0001803,10]
[358317886,1744931438155,-200.0,0.0001803,10]
[358317888,1744931438163,-127.6323572,0.0001803,10]
[358317891,1744931438175,-72.3676428,0.0001803,10]
[358317893,1744931438185,-200.0,0.0001803,10]
[358317895,1744931438194,-200.0,0.0001803,10]
[358317897,1744931438203,-200.0,0.0001803,10]
[358317899,1744931438213,-200.0,0.0001803,10]
[358317900,1744931438222,-200.0,0.0001803,10]
[358317903,1744931438232,-200.0,0.0001803,10]
[358317905,1744931438243,-200.0,0.0001803,10]
[358317906,1744931438252,-200.0,0.0001803,10]
[358317908,1744931438261,-200.0,0.0001803,10]
[358317910,1744931438271,-200.0,0.0001803,10]
[358317912,1744931438280,-200.0,0.0001803,10]
[358317915,1744931438290,-200.0,0.0001803,10]
[358317918,1744931438299,-200.0,0.0001803,10]
[358317921,1744931438308,-200.0,0.0001803,10]
[358317924,1744931438318,-200.0,0.0001803,10]
[358317927,1744931438328,-200.0,0.0001803,10]
[358317929,1744931438337,-200.0,0.0001803,10]
[358317931,1744931438347,-200.0,0.0001803,10]
[358317933,1744931438356,-200.0,0.0001803,10]
[358317935,1744931438365,-200.0,0.0001803,10]
[358317937,1744931438375,-200.0,0.0001803,10]
[358317939,1744931438384,-200.0,0.0001803,10]
[358317941,1744931438393,-200.0,0.0001803,10]
[358317943,1744931438402,-200.0,0.0001803,10]
[358317945,1744931438411,-200.0,0.0001803,10]
[358317947,1744931438421,-200.0,0.0001803,10]
[358317949,1744931438430,-200.0,0.0001803,10]
[358317951,1744931438439,-200.0,0.0001803,10]
[358317953,1744931438449,-281.124773,0.0001803,10]
[358317955,1744931438458,-10391.08082204,0.0001803,2]
[358317968,1744931438566,-9957.75099154,0.0001803,2]
[358318076,1744931440145,-279.89651618,0.0001803,2]
[358318077,1744931440176,-4071.27167024,0.0001803,2]
[358318078,1744931440186,-4.86194862,0.00018117,2]
[358318079,1744931440196,-252.5489143,0.00018474,2]
[358318080,1744931440206,-861.36890537,0.000188,2]
[358318081,1744931440216,-152.68707532,0.000188,2]
[358318082,1744931440226,-475.50740737,0.00018897,2]
[358318083,1744931440235,-2196.05677933,0.000189,2]
[358318084,1744931440245,-152.68707532,0.00018974,2]
[358318085,1744931440255,-848.4901985,0.00018974,2]
[358318086,1744931440264,-151.0,0.00018987,2]
[358318087,1744931440274,-381.27881693,0.00018997,2]
[358318088,1744931440284,-500.0,0.00018997,2]
[358318089,1744931440293,-500.0,0.00018997,2]
[358318090,1744931440302,-500.0,0.00018997,2]
[358318091,1744931440312,-500.0,0.00018997,2]
[358318092,1744931440321,-500.0,0.00018997,2]
[358318093,1744931440332,-500.0,0.00018997,2]
[358318094,1744931440342,-500.0,0.00018997,2]
[358318095,1744931440352,-500.0,0.00018997,2]
[358318096,1744931440361,-500.0,0.00018997,2]
[358318097,1744931440371,-500.0,0.00018997,2]
[358318098,1744931440380,-500.0,0.00018997,2]
[358318099,1744931440390,-500.0,0.00018997,2]
[358318100,1744931440400,-500.0,0.00018997,2]
[358318101,1744931440409,-500.0,0.00018997,2]
[358318102,1744931440419,-500.0,0.00018997,2]
[358318103,1744931440428,-500.0,0.00018997,2]
[358318104,1744931440437,-500.0,0.00018997,2]
[358318105,1744931440446,-500.0,0.00018997,2]
[358318106,1744931440455,-500.0,0.00018997,2]
[358318107,1744931440465,-500.0,0.00018997,2]
[358318108,1744931440474,-500.0,0.00018997,2]
[358318109,1744931440483,-500.0,0.00018997,2]
[358318110,1744931440492,-500.0,0.00018997,2]
[358318111,1744931440502,-500.0,0.00018997,2]
[358318112,1744931440511,-500.0,0.00018997,2]
[358318113,1744931440521,-500.0,0.00018997,2]
[358318114,1744931440531,-500.0,0.00018997,2]
[358318115,1744931440540,-500.0,0.00018997,2]
[358318116,1744931440549,-500.0,0.00018997,2]
[358318117,1744931440559,-500.0,0.00018997,2]
[358318118,1744931440568,-500.0,0.00018997,2]
[358318119,1744931440579,-500.0,0.00018997,2]
[358318120,1744931440589,-500.0,0.00018997,2]
[358318121,1744931440599,-500.0,0.00018997,2]
[358318122,1744931440608,-500.0,0.00018997,2]
[358318123,1744931440618,-500.0,0.00018997,2]
[358318124,1744931440628,-500.0,0.00018997,2]
[358318125,1744931440638,-500.0,0.00018997,2]
[358318126,1744931440647,-500.0,0.00018997,2]
[358318127,1744931440657,-500.0,0.00018997,2]
[358318128,1744931440668,-500.0,0.00018997,2]
[358318129,1744931440678,-500.0,0.00018997,2]
[358318130,1744931440689,-421.71491763,0.00018997,2]
[358318131,1744931440700,-500.0,0.00018997,2]
[358318132,1744931440710,-500.0,0.00018997,2]
[358318133,1744931440720,-500.0,0.00018997,2]
[358318134,1744931440730,-500.0,0.00018997,2]
[358318135,1744931440740,-500.0,0.00018997,2]
[358318136,1744931440750,-500.0,0.00018997,2]
[358318137,1744931440759,-500.0,0.00018997,2]
[358318138,1744931440769,-500.0,0.00018997,2]
[358318139,1744931440779,-500.0,0.00018997,2]
[358318140,1744931440788,-500.0,0.00018997,2]
[358318141,1744931440798,-500.0,0.00018997,2]
[358318142,1744931440808,-500.0,0.00018997,2]
[358318143,1744931440817,-500.0,0.00018997,2]
[358318144,1744931440831,-650.0,0.00018997,2]
[358318145,1744931440840,-500.0,0.00018997,2]
[358318146,1744931440850,-152.68707532,0.00019148,2]
[358318147,1744931440860,-152.0,0.00019205,2]
[358318148,1744931440869,-475.50740733,0.00019264,2]
[358318149,1744931440879,-152.68707532,0.00019322,2]
[358318150,1744931440891,-1000.0,0.00019442,2]
[358318151,1744931440902,-524.5171565,0.00019485,2]
[358318152,1744931440912,-234.10379,0.00019494,2]
[358318153,1744931440922,-152.68707532,0.00019496,2]
[358318154,1744931440933,-475.50740733,0.00019631,2]
[358318155,1744931440943,-152.68707532,0.00019669,2]
[358318156,1744931440952,-420.0,0.00019671,2]
[358318157,1744931440962,-420.0,0.00019768,2]
[358318158,1744931440972,-152.68707532,0.00019843,2]
[358318159,1744931440982,-207.4,0.00019894,2]
[358318160,1744931440992,-500.0,0.00019989,2]
[358318161,1744931441002,-500.0,0.00019989,2]
[358318162,1744931441011,-634.66393109,0.00019989,2]
[358318163,1744931441021,-53573.03092111,0.0001999,2]
[358318164,1744931441030,-475.50740733,0.00019997,2]
[358318165,1744931441040,-551.0,0.0002,2]
[358318166,1744931441049,-2173.54177532,0.0002,2]
[358318167,1744931441059,-152.68707532,0.00020017,2]
[358318168,1744931441068,-152.68707532,0.00020191,2]
[358318169,1744931441081,-151.0,0.00020356,2]
[358318170,1744931441090,-475.50740733,0.00020364,2]
[358318171,1744931441101,-152.68707532,0.00020365,2]
[358318172,1744931441111,-153.316257,0.00020463,2]
[358318173,1744931441120,-216.74778,0.00020463,2]
[358318174,1744931441130,-216.74778,0.00020463,2]
[358318175,1744931441140,-151.0,0.00020463,2]
[358318176,1744931441150,-151.0,0.00020463,2]
[358318177,1744931441162,-199.52946686,0.00020463,2]
[358318178,1744931441173,-64219.63391843,0.00020463,2]
[358318179,1744931441183,-4509.00009736,0.00020463,3]
[358318180,1744931441195,-29779.89483458,0.00020464,2]
[358318181,1744931441209,-48305.3605794,0.00020464,2]
[358318182,1744931441223,-2871.17374703,0.00020464,2]
[358318211,1744931444505,-3239.21286451,0.00020464,2]
[358318213,1744931444518,-378.5943646,0.00020464,2]
[358318217,1744931444542,-9856.4174283,0.00020464,2]
[358318219,1744931444554,-10731.92023591,0.00020464,2]
[358318233,1744931445904,-6424.48046282,0.00020464,2]
[358318234,1744931445915,-1306.51452931,0.00020464,2]
[358318235,1744931445927,-30002.91028418,0.00020464,2]
[358318236,1744931445945,-4678.36621142,0.00020464,2]
[358318237,1744931445979,-799.99939,0.00020464,2]
[358318238,1744931446012,-22323.97482592,0.00020464,2]
[358318239,1744931446047,-500.0,0.00020464,2]
[358318240,1744931446060,-14593.50405104,0.00020464,2]
[358318241,1744931446072,-463.3,0.00020464,2]
[358318242,1744931446085,-647.01848232,0.00020464,2]
[358318243,1744931446098,-9818.11819049,0.00020464,2]
[358318244,1744931446112,-947.67,0.00020464,2]
[358318245,1744931545505,1000.0,0.00017929,2]
[358318246,1744931574178,-161.76488701,0.00018896,2]
[358318250,1744932298935,-161.76488701,0.00018126,2]
[358318274,1744932469928,143933.86154254,0.00018,2]
[358318276,1744932514202,15983.68459399,0.00017,2]
[358318277,1744932514874,-160.0,0.00018126,2]
[358318278,1744932514898,-132.26255239,0.00018126,2]
[358318279,1744932522956,9625.89241673,0.00015,2]
[358318280,1744932523451,-242.18531469,0.00018126,2]
[358318281,1744932524101,199.096059,0.00011,12]
[358318282,1744932533744,243.15171915,0.0001801,2]
[358318283,1744932535924,-160.0,0.00018126,2]
[358318304,1744932544210,5000.0,0.00016653,2]
[358318306,1744932549612,160.0,0.0001801,2]
[358318347,1744932631965,-2900.22343166,0.00018126,2]
[358318348,1744932631977,-272.07162368,0.00018126,2]
[358318349,1744932631989,-210.87536677,0.00018126,2]
[358318350,1744932631999,-88.23511299,0.00018896,2]
[358318351,1744932632008,-1665.40950893,0.000189,2]
[358318352,1744932632018,-300.0,0.00018972,2]
[358318353,1744932632027,-300.0,0.00018972,2]
[358318355,1744932632036,-500.0,0.00018973,2]
[358318357,1744932632045,-500.0,0.00018973,2]
[358318359,1744932632055,-492.39351796,0.00018973,2]
[358318361,1744932632064,-500.0,0.00018973,2]
[358318363,1744932632073,-500.0,0.00018973,2]
[358318365,1744932632083,-500.0,0.00018973,2]
[358318367,1744932632092,-500.0,0.00018973,2]
[358318369,1744932632102,-500.0,0.00018973,2]
[358318371,1744932632111,-500.0,0.00018973,2]
[358318372,1744932632120,-501.06259466,0.00018973,2]
[358318373,1744932632130,-500.0,0.00018973,2]
[358318374,1744932632139,-500.0,0.00018973,2]
[358318376,1744932632148,-480.54758861,0.00018973,2]
[358318377,1744932632158,-500.0,0.00018973,2]
[358318378,1744932632167,-500.0,0.00018973,2]
[358318379,1744932632177,-500.0,0.00018973,2]
[358318380,1744932632186,-154.96594194,0.00018973,2]
[358318381,1744932632196,-500.0,0.00018973,2]
[358318382,1744932632205,-500.0,0.00018973,2]
[358318383,1744932632215,-177.78286307,0.00018973,2]
[358318384,1744932632224,-500.0,0.00018973,2]
[358318385,1744932632234,-286.66594123,0.00018973,2]
[358318386,1744932632243,-446.02157172,0.00018973,2]
[358318387,1744932632256,-343.24527256,0.00018973,2]
[358318388,1744932632266,-500.0,0.00018973,2]
[358318389,1744932632275,-151.0,0.00018989,2]
[358318390,1744932632285,-500.0,0.00018999,2]
[358318391,1744932632295,-644.26475176,0.00018999,2]
[358318392,1744932632304,-500.0,0.00018999,2]
[358318393,1744932632314,-500.0,0.00018999,2]
[358318394,1744932632324,-500.0,0.00018999,2]
[358318395,1744932632334,-500.0,0.00018999,2]